Cogmind - Beta 15 @@@ ROGUE MODE // 2025.05.31 @ 14:39:39 // Winter2022/Polymind Player: Figgis Result: Self-destructed Performance ------------- Evolutions (2) 1000 Regions Visited (4) 800 Robots Destroyed (24) 120 Value Destroyed (685) 685 Prototype IDs (0) 0 Alien Tech Used (0) 0 Bonus (960) 960 TOTAL SCORE: 3565 Bonus ------- Polymind Skill 760 Pacifist 200 Cogmind --------- Core Integrity 550/550 Matter 100/100 Energy 215/215 System Corruption 0% Temperature Cool (0) Movement Treading (160) Location -8/Materials Parts ------- > --- POWER (1) -------- Improved Ion Engine > --- PROPULSION (2) --- Light Treads Light Treads > --- UTILITY (3) ------ Heat Sink Heat Sink Light Armor Plating > --- WEAPON (2) ------- Beam Rifle Heavy Assault Rifle > --- INVENTORY (1) ---- (None) Peak State ------------ > --- POWER ------------ Improved Ion Engine > --- PROPULSION ------- Light Treads Light Treads > --- UTILITY ---------- Heat Sink Heat Sink Light Armor Plating > --- WEAPON ----------- Beam Rifle Heavy Assault Rifle > --- INVENTORY -------- (None) [Rating: 11] Favorites ----------- Power Improved Ion Engine Engine Improved Ion Engine Propulsion Light Treads Treads Light Treads Utility Heat Sink Device Heat Sink Protection Light Armor Plating Weapon Heavy Assault Rifle Energy Gun Beam Rifle Ballistic Gun Heavy Assault Rifle Build | -11 -10 -10 -9 -8 ------- Run | Yrd Mat Min Mat Mat Slots Evolved . | . . . . . Power . | . . . . . Propulsion . | . . . . . Utility . | . . . . . Weapon . | . . . . . Parts Attached . | . . . . . Power . | . . . . . Engine . | . . . . . Core . | . . . . . Reactor . | . . . . . Propulsion . | . . . . . Treads . | . . . . . Leg . | . . . . . Wheel . | . . . . . Hover . | . . . . . Flight . | . . . . . Utility . | . . . . . Device . | . . . . . Storage . | . . . . . Processor . | . . . . . Hackware . | . . . . . Protection . | . . . . . Artifact . | . . . . . Weapon . | . . . . . Energy Gun . | . . . . . Energy Cannon . | . . . . . Ballistic Gun . | . . . . . Ballistic Cannon . | . . . . . Launcher . | . . . . . Special Weapon . | . . . . . Impact Weapon . | . . . . . Slashing Weapon . | . . . . . Piercing Weapon . | . . . . . Special Melee Weapon . | . . . . . Unidentified Prototypes . | . . . . . Parts Lost 4 | . . . 4 . Power . | . . . . . Propulsion 1 | . . . 1 . Utility 2 | . . . 2 . Weapon 1 | . . . 1 . Highest Loss Streak 4 | . . . 4 . To Critical Strikes . | . . . . . Average Backups . | . . . . . Power . | . . . . . Propulsion . | . . . . . Utility . | . . . . . Weapon . | . . . . . Tool/Special . | . . . . . Unused Backups . | . . . . . Power . | . . . . . Propulsion . | . . . . . Utility . | . . . . . Weapon . | . . . . . Tool/Special . | . . . . . Average Slot Usage (%) 81 | . . . 86 . Engine 10 | . . . 11 . Treads 20 | . . . 21 . Device 20 | . . . 21 . Protection 8 | . . . 9 . Energy Gun 8 | . . . 9 . Ballistic Gun 10 | . . . 11 . Peak Build Rating 11 | . . . 11 . Average Rating 9 | . . . 9 . On Entrance 2 | . . . . 11 Naked Turns 51 | . 32 4 15 . Heaviest Build 18 | . . . 18 . Greatest Support 40 | 3 3 3 40 . Greatest Overweight (x) . | . . . . . Average Overweight (x) . | . . . . . Largest Inventory Capacity 1 | . . . 1 . Average Capacity . | . . . . . Most Carried . | . . . . . Average Carried . | . . . . . Final Capacity 1 | . . . 1 1 Final Carried . | . . . . . Class Distribution -------------------- 93% | Sentry 6% | Cogmind Dominant Class ---------------- Cogmind | -10/Materials Cogmind | -10/Mines Sentry | -9/Materials Sentry | -8/Materials Resources | -11 -10 -10 -9 -8 ----------- Run | Yrd Mat Min Mat Mat Matter Collected 134 | . . . 134 . Remotely . | . . . . . Salvage Created 669 | . . . 669 . Parts 61 | . . . 61 . Haulers Intercepted . | . . . . . Recyclers Shooed . | . . . . . Parts Field Recycled . | . . . . . Retrieved Matter . | . . . . . Parts Self-Destructed . | . . . . . Prevented . | . . . . . Kills | -11 -10 -10 -9 -8 ------- Run | Yrd Mat Min Mat Mat Combat Hostiles Destroyed 19 | . . . 19 . Guns 19 | . . . 19 . Classes Destroyed 5 | . . . 5 . Operator 1 | . . . 1 . Watcher 4 | . . . 4 . Swarmer 4 | . . . 4 . Grunt 10 | . . . 10 . Sentry 5 | . . . 5 . Best Kill Streak 4 | . . . 4 . Combat Bots Only 3 | . . . 3 . Max Kills in Single Turn 1 | . . . 1 . Gunslinging . | . . . . . Exploded . | . . . . . Melee . | . . . . . Uniques/NPCs Destroyed . | . . . . . Combat | -11 -10 -10 -9 -8 -------- Run | Yrd Mat Min Mat Mat Hostile Shots Fired 76 | . . . 76 . Missed 15 | . . . 15 . Hits 61 | . . . 61 . Projectile 61 | . . . 61 . Critical Strikes 2 | . . . 2 . Damage Taken 737 | . . . 737 . Core 111 | . . . 111 . Absorbed by Shields . | . . . . . Core Remaining (%) 90 | 100 . 100 72 . Volleys Fired 51 | . . . 51 . Largest 2 | . . . 2 . Hottest 79 | . . . 79 . Shots Fired 89 | . . . 89 . Gun 89 | . . . 89 . Cannon . | . . . . . Launcher . | . . . . . Special . | . . . . . Kinetic 51 | . . . 51 . Thermal 38 | . . . 38 . Explosive . | . . . . . Electromagnetic . | . . . . . Robot Hit Streak 12 | . . . 12 . Robot Miss Streak 4 | . . . 4 . Penetration Max . | . . . . . Secondary Targets . | . . . . . Shots Hit Robots 60 | . . . 60 . Core Hits 33 | . . . 33 . Critical Kills . | . . . . . Critical Parts Destroyed . | . . . . . Critical Strikes 6 | . . . 6 . Burn 6 | . . . 6 . Melee Attacks . | . . . . . Impact . | . . . . . Slashing . | . . . . . Piercing . | . . . . . Sneak Attacks . | . . . . . Combat Hostiles . | . . . . . Follow-up Attacks . | . . . . . Damage Inflicted 993 | . . . 993 . Guns 993 | . . . 993 . Cannons . | . . . . . Explosions . | . . . . . Melee . | . . . . . Ramming . | . . . . . Kinetic 603 | . . . 603 . Thermal 390 | . . . 390 . Explosive . | . . . . . Electromagnetic . | . . . . . Impact . | . . . . . Slashing . | . . . . . Piercing . | . . . . . Highest Corruption . | . . . . . Average Corruption . | . . . . . Corruption Purged . | . . . . . Corruption Blocked . | . . . . . Overload Shots . | . . . . . Overflow Damage . | . . . . . Projectiles . | . . . . . Explosions . | . . . . . Melee . | . . . . . Knockbacks . | . . . . . Impact . | . . . . . Kinetic . | . . . . . Secondary . | . . . . . Self-Inflicted Damage . | . . . . . Shots . | . . . . . Rammed . | . . . . . Targets Rammed . | . . . . . Kicked . | . . . . . Crushed . | . . . . . Highest Temperature 62 | . . . 62 . Average Temperature 17 | . . . 17 . Received Heat Transfer 270 | . . . 270 . Siege Activations . | . . . . . Martial Activations . | . . . . . Shielding Activations . | . . . . . Robots Disrupted . | . . . . . Combat Hostiles . | . . . . . Robots Corrupted . | . . . . . Combat Hostiles . | . . . . . Parts Fried . | . . . . . Impact Corruptions . | . . . . . Robots Melted . | . . . . . Combat Hostiles . | . . . . . Parts Melted 4 | . . . 4 . Heat Transferred 1406 | . . . 1406 . Parts Sabotaged . | . . . . . Parts Stolen . | . . . . . Parts Stripped . | . . . . . Power Chain Reactions . | . . . . . Alert | -11 -10 -10 -9 -8 ------- Run | Yrd Mat Min Mat Mat Maximum Alert Level 1 | . . . 1 . Low Security (%) 99 | 100 100 100 99 . Level 1 . | . . . . . Level 2 . | . . . . . Level 3 . | . . . . . Level 4 . | . . . . . Level 5 . | . . . . . High Security . | . . . . . Max Security . | . . . . . Peak Influence 203 | . 5 . 203 . Initial 74 | . . . . 74 Average 93 | . 1 . 99 . Influence Increases 515 | . 5 . 510 . Destroy 0b10 Robot/C 380 | . . . 380 . Destroy 0b10 Robot/NC 25 | . . . 25 . Destroy Leader 88 | . . . 88 . Successful Hack 5 | . 5 . . . Destroy Structure 2 | . . . 2 . Lose Combat Pursuer 15 | . . . 15 . Influence Decreases 441 | . 5 . 333 103 Entered New Map 103 | . . . . 103 Time Decay 293 | . 5 . 288 . Lost Part 40 | . . . 40 . Miscellaneous 5 | . . . 5 . Squads Dispatched 4 | . . . 4 . Investigation 2 | . . . 2 . Extermination . | . . . . . Reinforcement 2 | . . . 2 . Assault . | . . . . . Garrison . | . . . . . Intercept . | . . . . . Searches Triggered . | . . . . . Construction Impeded . | . . . . . Haulers Reinforced . | . . . . . Active Scanning Responses . | . . . . . Cargo Convoy Interrupts . | . . . . . Stealth | -11 -10 -10 -9 -8 --------- Run | Yrd Mat Min Mat Mat Distress Signals 2 | . . . 2 . Communications Jammed . | . . . . . Distress Signals . | . . . . . Times Spotted 25 | . . . 25 . Peak Tracking Total 4 | . . . 4 . Tactical Retreats 1 | . . . 1 . Traps | -11 -10 -10 -9 -8 ------- Run | Yrd Mat Min Mat Mat Traps Triggered . | . . . . . Indirectly . | . . . . . Trap Hack Attempts . | . . . . . Triggered . | . . . . . Disarmed . | . . . . . Reprogrammed . | . . . . . Reused . | . . . . . Traps Extracted . | . . . . . Installed . | . . . . . Triggered . | . . . . . Machines | -11 -10 -10 -9 -8 ---------- Run | Yrd Mat Min Mat Mat Machines Disabled . | . . . . . Max in Single Turn . | . . . . . Machines Repaired . | . . . . . Machines Dismantled . | . . . . . Machines Sabotaged . | . . . . . Overloaded Fab Kills . | . . . . . Hacking | -11 -10 -10 -9 -8 --------- Run | Yrd Mat Min Mat Mat Machines Accessed 5 | . 1 . 4 . Terminals 5 | . 1 . 4 . Fabricators . | . . . . . Repair Stations . | . . . . . Recycling Units . | . . . . . Scanalyzers . | . . . . . Garrison Access . | . . . . . Total Hacks 15 | . 4 . 11 . Successful 1 | . 1 . . . Failed 14 | . 3 . 11 . Catastrophic 4 | . . . 4 . Database Lockouts . | . . . . . Manual 10 | . 4 . 6 . Terminals 15 | . 4 . 11 . Fabricators . | . . . . . Repair Stations . | . . . . . Recycling Units . | . . . . . Scanalyzers . | . . . . . Garrison Access . | . . . . . Terminal Hacks . | . . . . . Fabricator Hacks . | . . . . . Repair Station Hacks . | . . . . . Recycling Unit Hacks . | . . . . . Scanalyzer . | . . . . . Garrison Access Hacks . | . . . . . Unauthorized Hacks 1 | . 1 . . . Terminals 1 | . 1 . . . Botnet 1 | . 1 . . . Fabricators . | . . . . . Repair Stations . | . . . . . Recycling Units . | . . . . . Scanalyzers . | . . . . . Garrison Access . | . . . . . Data Cores Recovered . | . . . . . Used . | . . . . . Hacking Detections 5 | . 1 . 4 . Full Trace Events 2 | . . . 2 . Feedback Events . | . . . . . Feedback Blocked . | . . . . . Robot Schematics Acquired . | . . . . . Robots Built . | . . . . . Authchips . | . . . . . Time . | . . . . . Total Robot Build Rating . | . . . . . Part Schematics Acquired . | . . . . . Parts Built . | . . . . . Authchips . | . . . . . Time . | . . . . . Total Part Build Rating . | . . . . . Parts Repaired . | . . . . . Time . | . . . . . Parts Recycled . | . . . . . Recycled Matter . | . . . . . Retrieved Matter . | . . . . . Retrieved Components . | . . . . . Parts Scanalyzed . | . . . . . Part Schematics Acquired . | . . . . . Parts Damaged . | . . . . . Bothacking | -11 -10 -10 -9 -8 ------------ Run | Yrd Mat Min Mat Mat Used RIF Installer . | . . . . . Robots Hacked 2 | . . . 2 . Non-combat . | . . . . . Combat 2 | . . . 2 . Robot Hacks Applied 2 | . . . 2 . find_shortcuts 2 | . . . 2 . Relay Couplers Released . | . . . . . Fabnet Peak Effective % . | . . . . . Robots Rewired . | . . . . . Allies Hacked . | . . . . . Hacks Repelled . | . . . . . Allies | -11 -10 -10 -9 -8 -------- Run | Yrd Mat Min Mat Mat Total Allies . | . . . . . Largest Group . | . . . . . Highest-Rated Group . | . . . . . Highest-Rated Ally . | . . . . . Total Orders . | . . . . . Ally Attacks . | . . . . . Total Damage . | . . . . . Kills . | . . . . . Allies Corrupted . | . . . . . Allies Melted . | . . . . . Intel | -11 -10 -10 -9 -8 ------- Run | Yrd Mat Min Mat Mat Active Infowar (turns) . | . . . . . Robot Analysis Total 1 | . . . 1 . Derelict Logs Recovered . | . . . . . Drone Launches . | . . . . . Drone Recoveries . | . . . . . Exploration | -11 -10 -10 -9 -8 ------------- Run | Yrd Mat Min Mat Mat Turns Passed 751 | 9 32 4 706 . Spaces Moved 451 | 18 64 8 361 . Core 118 | 18 64 8 28 . Treads 333 | . . . 333 . Legs . | . . . . . Wheels . | . . . . . Hover . | . . . . . Flight . | . . . . . Fastest Speed 50 | 50 50 50 50 . Average Speed 131 | 50 50 50 151 . Slowest Speed 160 | 50 50 50 160 . Overloaded Moves . | . . . . . Propulsion Burnouts . | . . . . . Robots Hopped . | . . . . . Potential Cave-ins . | . . . . . Cave-ins Triggered . | . . . . . Exploration Rate (%) 17 | 3 18 8 42 . Regions Visited 4 Branch Regions 1 Pre-discovered Areas . | . . . . . Known Exits Taken . | . . . . . Unknown Exits Taken 4 | 1 1 1 1 . Scrap Searched . | . . . . . Spaces Dug . | . . . . . Terrain Destroyed . | . . . . . Melee . | . . . . . Projectile . | . . . . . AOE . | . . . . . Terrain Rammed . | . . . . . Walls Destroyed . | . . . . . Machines Disabled . | . . . . . Actions | -11 -10 -10 -9 -8 --------- Run | Yrd Mat Min Mat Mat Total 518 | 17 63 7 431 . Wait 20 | . . . 20 . Move 447 | 17 63 7 360 . Hop . | . . . . . Pick Up . | . . . . . Fast Attach . | . . . . . Attach . | . . . . . Detach . | . . . . . Swap . | . . . . . Drop . | . . . . . Fire 51 | . . . 51 . Melee . | . . . . . Ram . | . . . . . Kick . | . . . . . Crush . | . . . . . Escape Stasis . | . . . . . Rewire . | . . . . . Trap . | . . . . . Miscellaneous . | . . . . . Route ------- -11/Scrapyard -10/Materials -10/Mines -9/Materials (discovered 4 exits: [*Mat x3] / [*Sto]) -8/Materials History --------- Turn | Location | Event 4 | -11/Scrapyard | Discovered new exit (range 14) 10 | -11/Scrapyard | Entered Materials 32 | -10/Materials | Discovered new exit (range 10) 42 | -10/Materials | Entered Mines 42 | -10/Mines | Discovered new exit (range 8) 46 | -10/Mines | Entered Materials 53 | -9/Materials | Discovered new exit (range 15) 261 | -9/Materials | Discovered new exit (range 5) 557 | -9/Materials | Lost 4 parts (1n2u1w) 568 | -9/Materials | Discovered new exit (range 13) 728 | -9/Materials | Discovered new exit (range 16) 752 | -9/Materials | Entered another Materials area 752 | -8/Materials | Self-destructed Last Messages --------------- 00633_ Y-45 Defender suffers critical hit (Burn). 00633_ Y-45 Defender destroyed. 00636_ Acquired 15 matter. 00644_ K-01 Serf collects debris. 00648_ K-01 Serf cleans the Scanalyzer. 00667_ K-01 Serf cleans the Terminal. 00668_ Connecting with Terminal... 00668_ ALERT: Suspicious activity at Terminal M011. Dispatching Investigation squad. 00671_ K-01 Serf cleans the Terminal. 00710_ G-34 Mercenary suffers critical hit (Burn). 00710_ Aluminum Leg melted. 00710_ Ion Engine melted. 00710_ G-34 Mercenary destroyed. 00715_ Acquired 12 matter. 00716_ K-01 Serf collects debris. 00728_ EXIT=FOUND 00738_ O-16 Technician: "IFF HANDSHAKE FAILED. SECURING TERMINAL." LOCATION=UNKNOWN GOAL=ESCAPE Map ----- +----------------------------------------------------+ | ??????????????????????????????????????? | | ??????????????????????????????????????? | | ??????????????????????????????????????? | | ??????????????????????????????????????? | | ??????????????????????????????????????? | | ??????????????????????????????????????? | | ??????????????????????????????????????? | | ??????????????????????????????????????? | | ??????????????????????????????????????? | | ??????????????????????????????????????? | | ??????????????????????????????????????? | | ??????????????????????????????????????? | | ??????????????????????????????????????? | | ??????????????????????????????????????? | | ??????????????????????????????????????? | | ??????????????????????????????????????? | | ??????????????????????????????????????? | | ??????????????????????????????????????? | | ??????????????????????????????????????? | | ??????????????????????????????????????? | | ??????????????????????????????????????? | | ??????????????????? #?????????????????? | | ?????????????????? #?????????????????? | | ????????????##### #?????????????????? | | ????????????# #?????????????????? | | ????????????# Y #?????????????????? | | ????????????# #?????????????????? | | ????????????#########?????????????????? | | ??????????????????????????????????????? | | ??????????????????????????????????????? | | ??????????????????????????????????????? | | ??????????????????????????????????????? | | ??????????????????????????????????????? | | ??????????????????????????????????????? | | ??????????????????????????????????????? | | ??????????????????????????????????????? | | ??????????????????????????????????????? | | ??????????????????????????????????????? | | ??????????????????????????????????????? | | ??????????????????????????????????????? | | ??????????????????????????????????????? | | ??????????????????????????????????????? | | ??????????????????????????????????????? | | ??????????????????????????????????????? | | ??????????????????????????????????????? | | ??????????????????????????????????????? | | ??????????????????????????????????????? | | ??????????????????????????????????????? | | ??????????????????????????????????????? | | ??????????????????????????????????????? | +----------------------------------------------------+ Best States ------------- Heat Dissipation 36 Energy Generation 17 Energy Capacity 215 Matter Stores 100 Matter Capacity 100 Sight Range 16 Terrain Scan Density 10 Armor Coverage 150 Resistance: EX 50 Resistance: I 25 Evasion (%) 50 Recoil Reduction 2 Item Schematics ----------------- None Robot Schematics ------------------ None Fabricated ------------ Nothing Repaired ---------- Nothing Alien Tech Used ----------------- None Achievements -------------- None Challenges ------------ None Polymind | -11 -10 -10 -9 -8 ---------- Run | Yrd Mat Min Mat Mat Hosts 2 | . . . 2 . Combat Hostiles 2 | . . . 2 . Allies . | . . . . . Unique Host Classes 1 | . . . 1 . Average Host Suspicion 94 | . . . 94 . Unsuspicious Activity 22 | . . . 22 . Returns to Shadow . | . . . . . Fuzzy Dispatches . | . . . . . Protomatter Created 87 | . . . 87 . Used 46 | . . . 46 . Decayed 7 | . . . 7 . Highest Spend 23 | . . . 23 . Top 5 Hosts by Kills: Y-45 Defender (-9/Materials: 17) Y-45 Defender (-9/Materials: 2) Game ------ Seed MobileTachyonMonowheel Manual? 0 Play Time 00:04:43 Cumulative 167.0 hours Start 2025.05.31 @ 14:34:32 End 2025.05.31 @ 14:39:39 Sessions 1 Manual Loads 0 Difficulty Rogue Special Mode Winter2022/Polymind Game No. 253 Rogue 250 Adventurer 3 Explorer 0 Win Type - Total 1 Types 1/0/0/0/0/0/0/0/0/0 Lore% 55 Gallery% 57 Achievement% 45 Wizard Run 0 Options --------- Layout 0 ASCII 0 Keyboard 0 Movement Mouse Keybinds 0 Fullscreen 2 Font 18/SmallcapsGlow Map View 76x50 Zoom Use 0% Tactical HUD 1 Map Filters NONE Filters NONE Steam 1 RUN: 372d6d9e-a11c-402e-9732-7c9695940968